{"text_format":"1","workbook":"xlsx","n_sheets":4,"sheets":["TENDER PACK 1b STORAGE(Sheet A)","DC1A","TENDER PACK 1b STORAGE(Sheet B)","DC1B"],"not_rendered":{"charts":0,"images":4,"macros":1,"external_links":0,"defined_names":2,"comments":2,"pivot_tables":0},"unopened":[],"bounds":{"document_bytes":16777216,"sheet_cells":100000,"rows_first":2000,"rows_last":500,"rows_between":2000,"halvings":0,"cell_chars":16384,"cell_head_chars":4096},"cells_cut":0,"cells_raw":0,"read":"whole","date_system":"1900"}

{"sheet":"TENDER PACK 1b STORAGE(Sheet A)","index":0,"n_rows":227,"n_cols":19,"rows_kept":227,"cut":false,"hidden":false,"merged":[[161,7,162,14],[163,7,164,14],[165,7,166,14],[167,7,168,14],[170,7,172,14],[118,3,120,6],[190,15,191,16],[188,5,189,6],[188,9,189,10],[188,11,189,12],[190,5,191,6],[190,9,191,10],[190,11,191,12],[180,7,180,8],[186,7,187,8],[188,7,189,8],[190,7,191,8],[176,3,177,16],[179,3,179,16],[181,3,185,4],[181,13,185,14],[181,15,185,16],[186,3,187,4],[186,13,187,14],[146,2,147,2],[146,3,147,6],[146,15,147,16],[154,3,155,6],[157,3,157,16],[159,3,159,16],[121,3,123,6],[121,9,122,16],[129,3,132,6],[124,7,125,16],[126,7,128,16],[129,7,132,16],[144,7,145,14],[146,7,147,14],[148,7,151,14],[152,7,153,16],[154,7,155,16],[126,3,128,6],[126,2,128,2],[129,2,132,2],[141,3,143,16],[161,2,162,2],[161,3,162,6],[152,2,153,2],[180,3,180,4],[180,13,180,14],[180,15,180,16],[136,3,137,16],[139,3,139,16],[161,15,162,16],[148,3,151,6],[148,15,151,16],[152,3,153,6],[180,5,180,6],[180,9,180,10],[180,11,180,12],[167,2,168,2],[167,3,168,6],[167,15,168,16],[154,2,155,2],[148,2,151,2],[144,2,145,2],[144,3,145,6],[144,15,145,16],[141,2,142,2],[89,3,89,6],[90,3,92,6],[87,7,88,16],[89,7,89,16],[90,7,92,16],[93,7,93,16],[118,2,120,2],[94,7,94,16],[95,7,95,16],[96,7,96,16],[97,7,98,16],[99,7,99,16],[101,7,101,16],[102,7,103,16],[104,7,107,16],[116,7,117,16],[114,3,114,16],[116,3,117,6],[100,3,100,14],[3,18,5,19],[12,3,13,16],[15,3,21,16],[17,18,20,19],[43,3,47,16],[43,18,45,19],[49,3,61,16],[53,18,55,19],[8,3,10,11],[8,12,10,12],[8,13,10,16],[23,3,23,16],[23,18,24,19],[24,3,24,16],[26,3,38,16],[27,18,29,19],[42,3,42,16],[2,3,6,16],[82,3,83,16],[85,3,85,16],[87,2,88,2],[90,2,92,2],[97,2,98,2],[102,2,103,2],[116,2,117,2],[124,2,125,2],[94,3,94,6],[95,3,95,6],[101,3,101,6],[102,3,103,6],[109,3,109,16],[111,3,112,16],[96,3,96,6],[124,3,125,6],[97,3,98,6],[99,3,99,6],[121,2,122,2],[104,3,107,6],[104,2,107,2],[118,7,120,16],[93,3,93,6],[87,3,88,6],[206,7,207,8],[192,3,193,4],[163,2,164,2],[163,3,164,6],[163,15,164,16],[165,2,166,2],[165,3,166,6],[165,15,166,16],[170,15,172,16],[170,3,172,6],[190,13,191,14],[192,7,193,8],[186,15,187,16],[181,5,185,6],[181,9,185,10],[181,11,185,12],[186,5,187,6],[186,9,187,10],[186,11,187,12],[181,7,185,8],[188,3,189,4],[188,13,189,14],[188,15,189,16],[190,3,191,4],[194,13,195,14],[194,15,195,16],[196,3,197,4],[196,13,197,14],[196,15,197,16],[192,5,193,6],[192,9,193,10],[192,11,193,12],[194,5,195,6],[194,9,195,10],[194,11,195,12],[196,5,197,6],[196,9,197,10],[196,11,197,12],[194,7,195,8],[196,7,197,8],[226,11,226,16],[226,3,226,10],[225,3,225,16],[200,3,201,4],[200,13,201,14],[200,15,201,16],[202,3,203,4],[202,13,203,14],[202,15,203,16],[204,3,205,4],[204,13,205,14],[204,15,205,16],[206,3,207,4],[206,13,207,14],[206,15,207,16],[206,11,207,12],[200,5,201,6],[200,9,201,10],[200,11,201,12],[202,5,203,6],[202,9,203,10],[206,5,207,6],[206,9,207,10],[202,11,203,12],[221,2,222,2],[224,3,224,16],[170,2,172,2],[221,3,222,6],[221,7,222,14],[221,15,222,16],[216,3,217,16],[219,3,219,16],[198,15,199,16],[198,3,199,4],[198,13,199,14],[204,5,205,6],[204,9,205,10],[204,11,205,12],[198,5,199,6],[198,9,199,10],[198,11,199,12],[198,7,199,8],[200,7,201,8],[202,7,203,8],[204,7,205,8],[192,13,193,14],[192,15,193,16],[194,3,195,4]]}
[]
[]
[null,null,null,"TENDER PACK 1B\nOPERATING MARGINS\n2026/27 GAS CAPACITY TENDER (GAS STORAGE FACILITY USER)\nSHEET A - MANDATORY 12 MONTH BID"]
[]
[]
[]
[]
[]
[null,null,null,"This tender pack is designed for:\n• Capacity Holders at Gas Storage Facilities - Service Providers who are a third party Storage User at a Storage Facility, i.e. the Storage User is not operator of the Storage Facility, or where the Service Provider is an affiliate of the Facility Operator.",null,null,null,null,null,null,null,null,null,"Submission of this sheet is mandatory for Storage Tenderers"]
[]
[]
[]
[null,null,null,"Issued November 2025"]
[]
[]
[null,null,null,"Produced by National Gas Transmission\nNational Gas Transmission plc\nWarwick Technology Park\nGallows Hill\nWarwick\nCV34 6DA"]
[]
[]
[]
[]
[]
[]
[]
[null,null,null,"Website:"]
[null,null,null,"https://www.nationalgas.com/our-businesses/operating-margins"]
[]
[null,null,null,"PLEASE NOTE:\nThis document should be read in conjunction with the template Operating Margins agreements (found on the Operating Margins Homepage) and the document entitled \"Tender Guidance Document 2026/27\".\n\nSpecific guidance on how to complete these tender sheets is provided in Sections 7 & 8 of the Operating Margins Tender Guidance Document with specific cross-references to these tender sheets via superscript numbers adjacent to the relevant fields of information. Please also refer to Section 6 \"Requirements of the Tender Process\" in order to understand what must accompany the tender sheets as part of submission in order that assessment can proceed on any tenders received.\n\nTerms and phrases used in this document have the meanings set out or referred to in the template Operating Margins agreements and/or the Operating Margins Tender Guidance Document."]
[]
[]
[]
[]
[]
[]
[]
[]
[]
[]
[]
[]
[]
[]
[]
[null,null,null,"IMPORTANT INFORMATION - PLEASE READ:"]
[null,null,null,"• All parts of 'Sheet A' must be completed by all Storage User tenderers and submitted to be eligible for assessment.\n• A tenderer may submit an additional proposal for a 12 month OM service in the form of 'Sheet B', whereby tranches are split differently. This is optional.\n\n\n**Volumes in Sheets A and B will be treated as mutually exclusive - i.e. National Gas will only consider accepting tranche(s) from ONE of Sheet A or Sheet B.**"]
[]
[]
[]
[]
[]
[null,null,null,"Completed Tenders should be submitted by 13:00 hours (GMT) on Wednesday 7th January 2026 via Ariba.\n\nThe completed Tender Pack should be uploaded with a filename which includes the company name and site.\nAfter uploading the Tender Pack document, terms and conditions must be accepted before submitting.\nSubmissions can be revised until the deadline."]
[]
[]
[]
[]
[]
[]
[]
[]
[]
[]
[]
[]
[]
[]
[]
[]
[]
[]
[]
[]
[]
[]
[]
[]
[]
[]
[]
[]
[]
[]
[]
[]
[null,null,null,"2026/27 OM GAS CAPACITY TENDER"]
[]
[]
[null,null,null,"Part 1: Tenderer Details"]
[]
[null,null,1,"Tenderer's Company Name\n(Including registered office address and company number)"]
[]
[null,null,2,"Company Representative, Job Title"]
[null,null,3,"Company Representative Address\n(full address including postcode)"]
[]
[]
[null,null,4,"Telephone Number"]
[]
[null,null,5,"Email Address"]
[null,null,6,"Legal Agent Name"]
[null,null,7,"Legal Agent Address"]
[]
[null,null,8,"Shipper Short Code"]
[null,null,9,"Please confirm that your organisation uses an accredited and industry-recognised digital security management system that manages cyber and information security risks across the full asset lifecycle, including design, architecture, development, testing, commissioning, and post-installation support.\n \nExamples of acceptable standards include (but are not limited to) the following:\n \n•\tISO/IEC 27001 certification\n•\tCyber Essentials / Cyber Essentials Plus (UK government-backed)\n•\tIEC 62443 (for industrial control systems)\n•\tAlignment with the NIST Cybersecurity Framework\n \nNotes:\nIf successful and following contract award notification, OM Service providers will be required to complete a security questionnaire, in order for National Gas to ensure audit compliance.  \n \nIf you fail to provide a response to this question, NGT reserves the right to discount you from the tender process.",null,null,null,null,null,null,null,null,null,null,null,"Click checkbox to confirm agreement and adherence ",false]
[null,null,10,"Achilles Registration Number"]
[null,null,11,"Type of Credit Security Provided ",null,null,null,null,null,null,null,null,null,null,null,null,null,null,4]
[]
[]
[]
[]
[]
[]
[null,null,null,"Part 2"]
[]
[null,null,null,"[See OM Tenderers Contract Response Form if such amendments are proposed]\nIf no amendments are proposed please go to Part 3"]
[]
[]
[null,null,null,"Part 3: Facility Details"]
[]
[null,null,12,"Facility Name\n(including company number if different)"]
[]
[null,null,13,"Facility Location\n(full address including postcode)"]
[]
[]
[null,null,null,null,null,null,null,null,null,null,null,null,null,null,null,null,null,null,2]
[]
[]
[null,null,14,"Execution Date For Tenderer’s Agreement With Facility Operator (Gas Storage Agreement)"]
[]
[null,null,15,"Duration of Service",null,null,null,"12 Months (01/05/2026- 30/04/2027)"]
[]
[]
[null,null,16,"Service Provider contact details for operational notices\nEmployee Position / role, Address, Telephone numbers and email details."]
[]
[]
[]
[]
[]
[]
[null,null,null,"2026/27 OM GAS CAPACITY TENDER"]
[]
[]
[null,null,null,"Part 4: Deliverability & Availability"]
[]
[null,null,null,"FOR ENTERING STORAGE WITHDRAWAL AND INJECTION  RATES PLEASE SEE 29 AND 30\n "]
[]
[]
[null,null,17,"Withdrawal Response Time",null,null,null,null,null,null,null,null,null,null,null,"Minutes"]
[]
[null,null,18,"Injection Response Time",null,null,null,null,null,null,null,null,null,null,null,"As defined by tenderer"]
[]
[null,null,19,"Planned Maintenance Periods",null,null,null,null,null,null,null,null,null,null,null,"Dates"]
[]
[]
[]
[null,null,20,"Website for Service Availability / Unavailability"]
[]
[null,null,21,"Allocation Agent                                                                  (Name, Address, Tel No)"]
[]
[]
[null,null,null,"Part 5: Charges & Capacity"]
[]
[null,null,null,"Where charges are to be levied for the provision / use of this service, these must be quantified below"]
[]
[null,null,22,"Injection Charge Rate\n(optional)",null,null,null,null,null,null,null,null,null,null,null,"p/kWh"]
[]
[null,null,23,"Withdrawal Charge Rate\n(optional)",null,null,null,null,null,null,null,null,null,null,null,"p/kWh"]
[]
[null,null,24,"Injection Overrun Charge Rate\n(optional)",null,null,null,null,null,null,null,null,null,null,null,"p/kWh"]
[]
[null,null,25,"Withdrawal Overrun Charge Rate\n(optional)",null,null,null,null,null,null,null,null,null,null,null,"p/kWh"]
[]
[]
[null,null,26,"Additional SP Withdrawal Capacity Charge Rate ",null,null,null,null,null,null,null,null,null,null,null,"p/kWh"]
[]
[]
[]
[]
[]
[null,null,null,"2026/27 OM GAS CAPACITY TENDER"]
[]
[]
[null,null,null,"Part 5: Charges & Capacity (Continued)"]
[null,null,null,27,null,28,null,29,null,30,null,31,null,32,null,33]
[null,null,null,"Capacity Procurement Tranche Number",null,"Storage Space (in kWh)",null,"Storage Withdrawal Capacity (in kWh per day) this must be greater than or equal to Storage Space. ",null,"Storage Injection Capacity (in kWh per day)",null,"Annual Service Fee (in pence per kWh per annum)",null,"Annual Service Fee (£)",null,"Tranche may only be accepted in full (YES / NO)"]
[]
[]
[]
[]
[null,null,null,1,null,null,null,null,null,null,null,null,null,{"$f":"(L187*F187)/100","v":0},null,null,null,null,false]
[]
[null,null,null,2,null,null,null,null,null,null,null,null,null,{"$f":"(L189*F189)/100","v":0},null,null,null,null,false]
[]
[null,null,null,3,null,null,null,null,null,null,null,null,null,{"$f":"(L191*F191)/100","v":0},null,null,null,null,false]
[]
[null,null,null,4,null,null,null,null,null,null,null,null,null,{"$f":"(L193*F193)/100","v":0},null,null,null,null,false]
[]
[null,null,null,5,null,null,null,null,null,null,null,null,null,{"$f":"(L195*F195)/100","v":0}]
[]
[null,null,null,6,null,null,null,null,null,null,null,null,null,{"$f":"(L197*F197)/100","v":0},null,null,null,null,false]
[]
[null,null,null,7,null,null,null,null,null,null,null,null,null,{"$f":"(L199*F199)/100","v":0},null,null,null,null,false]
[]
[null,null,null,8,null,null,null,null,null,null,null,null,null,{"$f":"(L201*F201)/100","v":0},null,null,null,null,false]
[]
[null,null,null,9,null,null,null,null,null,null,null,null,null,{"$f":"(L203*F203)/100","v":0},null,null,null,null,false]
[]
[null,null,null,10,null,null,null,null,null,null,null,null,null,{"$f":"(L205*F205)/100","v":0},null,null,null,null,false]
[]
[null,null,null,"Total",null,{"$f":"SUM(F187:G206)","v":0},null,{"$f":"SUM(H187:I206)","v":0},null,{"$f":"SUM(J187:K206)","v":0},null,null,null,{"$f":"SUM(N187:O206)","v":0}]
[]
[]
[]
[]
[]
[]
[]
[]
[]
[null,null,null,"2026/27 OM GAS CAPACITY TENDER\n"]
[]
[]
[null,null,null,"Part 6: Facility Withdrawal Capacity"]
[]
[null,null,34,"Nameplate Facility Withdrawal Rate",null,null,null,null,null,null,null,null,null,null,null,"kWh/h"]
[]
[]
[null,null,35,"Facility Performance Curve"]
[null,null,null,"Please use the below space to describe the deliverability at different stock levels"]
[null,null,null,"Facility Gas In Storage (kWh)",null,null,null,null,null,null,null,"Maximum Facility Withdrawal Rate (kWh/h)"]

{"sheet":"DC1A","index":1,"n_rows":13,"n_cols":38,"rows_kept":13,"cut":false,"hidden":true,"merged":[[0,2,1,9]]}
[null,null,"Data Collection Tab for Contracts Team"]
[]
["Tender Pack","Tender Ref","Tranche Ref","Main Ref","Tenderer's Company Name","Company Representative","Company Representative Address","Telephone Number","Facsimile Number","E-Mail Address","Legal Agent Name","Legal Agent Address","Shipper Short Code","Achilles Registration Number","Type of credit security provided","Winter only?","Facility Name","Facility Location","Service Provision Category","Execution Date For Tenderer’s Agreement With Facility Operator (Gas Storage Agreement)","Storage Withdrawal Capacity, kWh/Day","Withdrawal Response Time, Minutes","Injection Response Time, Minutes","Planned Maintenenace Periods, Dates","Website for Clauses","Allocation Agent","Injection Charge Rate, p/kWh","Withdrawal Charge Rate (Optional), p/kWh","Injection Overrun  Charge Rate p/kWh","Withdrawal Overrun Charge Rate (Optional), p/kWh","Capacity Procurement Tranche Number","Storage Space, kWh","Storage Injection Capacity, kWh / day","Annual Service Fee, p/kWh pa","Please tick if the tranche may only be accepted in full","Has Facility Withdrawal Capacity been entered?","Additional SP Withdrawal Capacity Charge Rate ","Nameplate"]
[null,null,null,{"$f":"A4&\".\"&B4&\".\"&C4","v":".."},{"$f":"'TENDER PACK 1b STORAGE(Sheet A)'!$H$88","v":0},{"$f":"'TENDER PACK 1b STORAGE(Sheet A)'!$H$90","v":0},{"$f":"'TENDER PACK 1b STORAGE(Sheet A)'!$H$91","v":0},{"$f":"'TENDER PACK 1b STORAGE(Sheet A)'!$H$94","v":0},{"$f":"'TENDER PACK 1b STORAGE(Sheet A)'!$H$95","v":0},{"$f":"'TENDER PACK 1b STORAGE(Sheet A)'!$H$96","v":0},{"$f":"'TENDER PACK 1b STORAGE(Sheet A)'!$H$97","v":0},{"$f":"'TENDER PACK 1b STORAGE(Sheet A)'!$H$98","v":0},{"$f":"'TENDER PACK 1b STORAGE(Sheet A)'!$H$100","v":0},{"$f":"'TENDER PACK 1b STORAGE(Sheet A)'!$H$102","v":0},{"$f":"IF('TENDER PACK 1b STORAGE(Sheet A)'!$S$103=2,\"Parent Company Guarantee\",IF('TENDER PACK 1b STORAGE(Sheet A)'!$S$103=3,\"Letter of Credit\", IF('TENDER PACK 1b STORAGE(Sheet A)'!$S$103=4,\"Deposit Deed\",IF('TENDER PACK 1b STORAGE(Sheet A)'!$S$103=1,\"Meets Requirements\",\"UNCHECKED\"))))","v":"Deposit Deed"},"No",{"$f":"'TENDER PACK 1b STORAGE(Sheet A)'!$H$117","v":0},{"$f":"'TENDER PACK 1b STORAGE(Sheet A)'!$H$119","v":0},"Storage User",{"$f":"'TENDER PACK 1b STORAGE(Sheet A)'!$H$125","v":"00:00:00"},{"$f":"'TENDER PACK 1b STORAGE(Sheet A)'!$H$187","v":0},{"$f":"'TENDER PACK 1b STORAGE(Sheet A)'!$H$145","v":0},{"$f":"'TENDER PACK 1b STORAGE(Sheet A)'!$H$147","v":0},{"$f":"'TENDER PACK 1b STORAGE(Sheet A)'!$H$149","v":"00:00:00"},{"$f":"'TENDER PACK 1b STORAGE(Sheet A)'!$H$153","v":0},{"$f":"'TENDER PACK 1b STORAGE(Sheet A)'!$H$155","v":0},{"$f":"'TENDER PACK 1b STORAGE(Sheet A)'!$H$162","v":0},{"$f":"'TENDER PACK 1b STORAGE(Sheet A)'!$H$164","v":0},{"$f":"'TENDER PACK 1b STORAGE(Sheet A)'!$H$166","v":0},{"$f":"'TENDER PACK 1b STORAGE(Sheet A)'!$H$168","v":0},{"$f":"'TENDER PACK 1b STORAGE(Sheet A)'!$D$187","v":1},{"$f":"'TENDER PACK 1b STORAGE(Sheet A)'!$F$187","v":0},{"$f":"'TENDER PACK 1b STORAGE(Sheet A)'!$J$187","v":0},{"$f":"'TENDER PACK 1b STORAGE(Sheet A)'!$L$187","v":0},{"$f":"'TENDER PACK 1b STORAGE(Sheet A)'!$P$187","v":0},null,{"$f":"'TENDER PACK 1b STORAGE(Sheet A)'!$H$171","v":0},{"$f":"'TENDER PACK 1b STORAGE(Sheet A)'!$H$222","v":0}]
[null,null,null,"..",{"$f":"'TENDER PACK 1b STORAGE(Sheet A)'!$H$88","v":0},{"$f":"'TENDER PACK 1b STORAGE(Sheet A)'!$H$90","v":0},{"$f":"'TENDER PACK 1b STORAGE(Sheet A)'!$H$91","v":0},{"$f":"'TENDER PACK 1b STORAGE(Sheet A)'!$H$94","v":0},{"$f":"'TENDER PACK 1b STORAGE(Sheet A)'!$H$95","v":0},{"$f":"'TENDER PACK 1b STORAGE(Sheet A)'!$H$96","v":0},{"$f":"'TENDER PACK 1b STORAGE(Sheet A)'!$H$97","v":0},{"$f":"'TENDER PACK 1b STORAGE(Sheet A)'!$H$98","v":0},{"$f":"'TENDER PACK 1b STORAGE(Sheet A)'!$H$100","v":0},{"$f":"'TENDER PACK 1b STORAGE(Sheet A)'!$H$102","v":0},{"$f":"IF('TENDER PACK 1b STORAGE(Sheet A)'!$S$103=2,\"Parent Company Guarantee\",IF('TENDER PACK 1b STORAGE(Sheet A)'!$S$103=3,\"Letter of Credit\", IF('TENDER PACK 1b STORAGE(Sheet A)'!$S$103=4,\"Deposit Deed\",IF('TENDER PACK 1b STORAGE(Sheet A)'!$S$103=1,\"Meets Requirements\",\"UNCHECKED\"))))","v":"Deposit Deed"},"No",{"$f":"'TENDER PACK 1b STORAGE(Sheet A)'!$H$117","v":0},{"$f":"'TENDER PACK 1b STORAGE(Sheet A)'!$H$119","v":0},"Storage User",{"$f":"'TENDER PACK 1b STORAGE(Sheet A)'!$H$125","v":"00:00:00"},{"$f":"'TENDER PACK 1b STORAGE(Sheet A)'!$H$189","v":0},{"$f":"'TENDER PACK 1b STORAGE(Sheet A)'!$H$145","v":0},{"$f":"'TENDER PACK 1b STORAGE(Sheet A)'!$H$147","v":0},{"$f":"'TENDER PACK 1b STORAGE(Sheet A)'!$H$149","v":"00:00:00"},{"$f":"'TENDER PACK 1b STORAGE(Sheet A)'!$H$153","v":0},{"$f":"'TENDER PACK 1b STORAGE(Sheet A)'!$H$155","v":0},{"$f":"'TENDER PACK 1b STORAGE(Sheet A)'!$H$162","v":0},{"$f":"'TENDER PACK 1b STORAGE(Sheet A)'!$H$164","v":0},{"$f":"'TENDER PACK 1b STORAGE(Sheet A)'!$H$166","v":0},{"$f":"'TENDER PACK 1b STORAGE(Sheet A)'!$H$168","v":0},{"$f":"'TENDER PACK 1b STORAGE(Sheet A)'!$D$189","v":2},{"$f":"'TENDER PACK 1b STORAGE(Sheet A)'!$F$189","v":0},{"$f":"'TENDER PACK 1b STORAGE(Sheet A)'!$J$189","v":0},{"$f":"'TENDER PACK 1b STORAGE(Sheet A)'!$L$189","v":0},{"$f":"'TENDER PACK 1b STORAGE(Sheet A)'!$P$189","v":0},null,{"$f":"'TENDER PACK 1b STORAGE(Sheet A)'!$H$171","v":0},{"$f":"'TENDER PACK 1b STORAGE(Sheet A)'!$H$222","v":0}]
[null,null,null,"..",{"$f":"'TENDER PACK 1b STORAGE(Sheet A)'!$H$88","v":0},{"$f":"'TENDER PACK 1b STORAGE(Sheet A)'!$H$90","v":0},{"$f":"'TENDER PACK 1b STORAGE(Sheet A)'!$H$91","v":0},{"$f":"'TENDER PACK 1b STORAGE(Sheet A)'!$H$94","v":0},{"$f":"'TENDER PACK 1b STORAGE(Sheet A)'!$H$95","v":0},{"$f":"'TENDER PACK 1b STORAGE(Sheet A)'!$H$96","v":0},{"$f":"'TENDER PACK 1b STORAGE(Sheet A)'!$H$97","v":0},{"$f":"'TENDER PACK 1b STORAGE(Sheet A)'!$H$98","v":0},{"$f":"'TENDER PACK 1b STORAGE(Sheet A)'!$H$100","v":0},{"$f":"'TENDER PACK 1b STORAGE(Sheet A)'!$H$102","v":0},{"$f":"IF('TENDER PACK 1b STORAGE(Sheet A)'!$S$103=2,\"Parent Company Guarantee\",IF('TENDER PACK 1b STORAGE(Sheet A)'!$S$103=3,\"Letter of Credit\", IF('TENDER PACK 1b STORAGE(Sheet A)'!$S$103=4,\"Deposit Deed\",IF('TENDER PACK 1b STORAGE(Sheet A)'!$S$103=1,\"Meets Requirements\",\"UNCHECKED\"))))","v":"Deposit Deed"},"No",{"$f":"'TENDER PACK 1b STORAGE(Sheet A)'!$H$117","v":0},{"$f":"'TENDER PACK 1b STORAGE(Sheet A)'!$H$119","v":0},"Storage User",{"$f":"'TENDER PACK 1b STORAGE(Sheet A)'!$H$125","v":"00:00:00"},{"$f":"'TENDER PACK 1b STORAGE(Sheet A)'!$H$191","v":0},{"$f":"'TENDER PACK 1b STORAGE(Sheet A)'!$H$145","v":0},{"$f":"'TENDER PACK 1b STORAGE(Sheet A)'!$H$147","v":0},{"$f":"'TENDER PACK 1b STORAGE(Sheet A)'!$H$149","v":"00:00:00"},{"$f":"'TENDER PACK 1b STORAGE(Sheet A)'!$H$153","v":0},{"$f":"'TENDER PACK 1b STORAGE(Sheet A)'!$H$155","v":0},{"$f":"'TENDER PACK 1b STORAGE(Sheet A)'!$H$162","v":0},{"$f":"'TENDER PACK 1b STORAGE(Sheet A)'!$H$164","v":0},{"$f":"'TENDER PACK 1b STORAGE(Sheet A)'!$H$166","v":0},{"$f":"'TENDER PACK 1b STORAGE(Sheet A)'!$H$168","v":0},{"$f":"'TENDER PACK 1b STORAGE(Sheet A)'!$D$191","v":3},{"$f":"'TENDER PACK 1b STORAGE(Sheet A)'!$F$191","v":0},{"$f":"'TENDER PACK 1b STORAGE(Sheet A)'!$J$191","v":0},{"$f":"'TENDER PACK 1b STORAGE(Sheet A)'!$L$191","v":0},{"$f":"'TENDER PACK 1b STORAGE(Sheet A)'!$P$191","v":0},null,{"$f":"'TENDER PACK 1b STORAGE(Sheet A)'!$H$171","v":0},{"$f":"'TENDER PACK 1b STORAGE(Sheet A)'!$H$222","v":0}]
[null,null,null,"..",{"$f":"'TENDER PACK 1b STORAGE(Sheet A)'!$H$88","v":0},{"$f":"'TENDER PACK 1b STORAGE(Sheet A)'!$H$90","v":0},{"$f":"'TENDER PACK 1b STORAGE(Sheet A)'!$H$91","v":0},{"$f":"'TENDER PACK 1b STORAGE(Sheet A)'!$H$94","v":0},{"$f":"'TENDER PACK 1b STORAGE(Sheet A)'!$H$95","v":0},{"$f":"'TENDER PACK 1b STORAGE(Sheet A)'!$H$96","v":0},{"$f":"'TENDER PACK 1b STORAGE(Sheet A)'!$H$97","v":0},{"$f":"'TENDER PACK 1b STORAGE(Sheet A)'!$H$98","v":0},{"$f":"'TENDER PACK 1b STORAGE(Sheet A)'!$H$100","v":0},{"$f":"'TENDER PACK 1b STORAGE(Sheet A)'!$H$102","v":0},{"$f":"IF('TENDER PACK 1b STORAGE(Sheet A)'!$S$103=2,\"Parent Company Guarantee\",IF('TENDER PACK 1b STORAGE(Sheet A)'!$S$103=3,\"Letter of Credit\", IF('TENDER PACK 1b STORAGE(Sheet A)'!$S$103=4,\"Deposit Deed\",IF('TENDER PACK 1b STORAGE(Sheet A)'!$S$103=1,\"Meets Requirements\",\"UNCHECKED\"))))","v":"Deposit Deed"},"No",{"$f":"'TENDER PACK 1b STORAGE(Sheet A)'!$H$117","v":0},{"$f":"'TENDER PACK 1b STORAGE(Sheet A)'!$H$119","v":0},"Storage User",{"$f":"'TENDER PACK 1b STORAGE(Sheet A)'!$H$125","v":"00:00:00"},{"$f":"'TENDER PACK 1b STORAGE(Sheet A)'!$H$193","v":0},{"$f":"'TENDER PACK 1b STORAGE(Sheet A)'!$H$145","v":0},{"$f":"'TENDER PACK 1b STORAGE(Sheet A)'!$H$147","v":0},{"$f":"'TENDER PACK 1b STORAGE(Sheet A)'!$H$149","v":"00:00:00"},{"$f":"'TENDER PACK 1b STORAGE(Sheet A)'!$H$153","v":0},{"$f":"'TENDER PACK 1b STORAGE(Sheet A)'!$H$155","v":0},{"$f":"'TENDER PACK 1b STORAGE(Sheet A)'!$H$162","v":0},{"$f":"'TENDER PACK 1b STORAGE(Sheet A)'!$H$164","v":0},{"$f":"'TENDER PACK 1b STORAGE(Sheet A)'!$H$166","v":0},{"$f":"'TENDER PACK 1b STORAGE(Sheet A)'!$H$168","v":0},{"$f":"'TENDER PACK 1b STORAGE(Sheet A)'!$D$193","v":4},{"$f":"'TENDER PACK 1b STORAGE(Sheet A)'!$F$193","v":0},{"$f":"'TENDER PACK 1b STORAGE(Sheet A)'!$J$193","v":0},{"$f":"'TENDER PACK 1b STORAGE(Sheet A)'!$L$193","v":0},{"$f":"'TENDER PACK 1b STORAGE(Sheet A)'!$P$193","v":0},null,{"$f":"'TENDER PACK 1b STORAGE(Sheet A)'!$H$171","v":0},{"$f":"'TENDER PACK 1b STORAGE(Sheet A)'!$H$222","v":0}]
[null,null,null,"..",{"$f":"'TENDER PACK 1b STORAGE(Sheet A)'!$H$88","v":0},{"$f":"'TENDER PACK 1b STORAGE(Sheet A)'!$H$90","v":0},{"$f":"'TENDER PACK 1b STORAGE(Sheet A)'!$H$91","v":0},{"$f":"'TENDER PACK 1b STORAGE(Sheet A)'!$H$94","v":0},{"$f":"'TENDER PACK 1b STORAGE(Sheet A)'!$H$95","v":0},{"$f":"'TENDER PACK 1b STORAGE(Sheet A)'!$H$96","v":0},{"$f":"'TENDER PACK 1b STORAGE(Sheet A)'!$H$97","v":0},{"$f":"'TENDER PACK 1b STORAGE(Sheet A)'!$H$98","v":0},{"$f":"'TENDER PACK 1b STORAGE(Sheet A)'!$H$100","v":0},{"$f":"'TENDER PACK 1b STORAGE(Sheet A)'!$H$102","v":0},{"$f":"IF('TENDER PACK 1b STORAGE(Sheet A)'!$S$103=2,\"Parent Company Guarantee\",IF('TENDER PACK 1b STORAGE(Sheet A)'!$S$103=3,\"Letter of Credit\", IF('TENDER PACK 1b STORAGE(Sheet A)'!$S$103=4,\"Deposit Deed\",IF('TENDER PACK 1b STORAGE(Sheet A)'!$S$103=1,\"Meets Requirements\",\"UNCHECKED\"))))","v":"Deposit Deed"},"No",{"$f":"'TENDER PACK 1b STORAGE(Sheet A)'!$H$117","v":0},{"$f":"'TENDER PACK 1b STORAGE(Sheet A)'!$H$119","v":0},"Storage User",{"$f":"'TENDER PACK 1b STORAGE(Sheet A)'!$H$125","v":"00:00:00"},{"$f":"'TENDER PACK 1b STORAGE(Sheet A)'!$H$195","v":0},{"$f":"'TENDER PACK 1b STORAGE(Sheet A)'!$H$145","v":0},{"$f":"'TENDER PACK 1b STORAGE(Sheet A)'!$H$147","v":0},{"$f":"'TENDER PACK 1b STORAGE(Sheet A)'!$H$149","v":"00:00:00"},{"$f":"'TENDER PACK 1b STORAGE(Sheet A)'!$H$153","v":0},{"$f":"'TENDER PACK 1b STORAGE(Sheet A)'!$H$155","v":0},{"$f":"'TENDER PACK 1b STORAGE(Sheet A)'!$H$162","v":0},{"$f":"'TENDER PACK 1b STORAGE(Sheet A)'!$H$164","v":0},{"$f":"'TENDER PACK 1b STORAGE(Sheet A)'!$H$166","v":0},{"$f":"'TENDER PACK 1b STORAGE(Sheet A)'!$H$168","v":0},{"$f":"'TENDER PACK 1b STORAGE(Sheet A)'!$D$195","v":5},{"$f":"'TENDER PACK 1b STORAGE(Sheet A)'!$F$195","v":0},{"$f":"'TENDER PACK 1b STORAGE(Sheet A)'!$J$195","v":0},{"$f":"'TENDER PACK 1b STORAGE(Sheet A)'!$L$195","v":0},{"$f":"'TENDER PACK 1b STORAGE(Sheet A)'!$P$195","v":0},null,{"$f":"'TENDER PACK 1b STORAGE(Sheet A)'!$H$171","v":0},{"$f":"'TENDER PACK 1b STORAGE(Sheet A)'!$H$222","v":0}]
[null,null,null,"..",{"$f":"'TENDER PACK 1b STORAGE(Sheet A)'!$H$88","v":0},{"$f":"'TENDER PACK 1b STORAGE(Sheet A)'!$H$90","v":0},{"$f":"'TENDER PACK 1b STORAGE(Sheet A)'!$H$91","v":0},{"$f":"'TENDER PACK 1b STORAGE(Sheet A)'!$H$94","v":0},{"$f":"'TENDER PACK 1b STORAGE(Sheet A)'!$H$95","v":0},{"$f":"'TENDER PACK 1b STORAGE(Sheet A)'!$H$96","v":0},{"$f":"'TENDER PACK 1b STORAGE(Sheet A)'!$H$97","v":0},{"$f":"'TENDER PACK 1b STORAGE(Sheet A)'!$H$98","v":0},{"$f":"'TENDER PACK 1b STORAGE(Sheet A)'!$H$100","v":0},{"$f":"'TENDER PACK 1b STORAGE(Sheet A)'!$H$102","v":0},{"$f":"IF('TENDER PACK 1b STORAGE(Sheet A)'!$S$103=2,\"Parent Company Guarantee\",IF('TENDER PACK 1b STORAGE(Sheet A)'!$S$103=3,\"Letter of Credit\", IF('TENDER PACK 1b STORAGE(Sheet A)'!$S$103=4,\"Deposit Deed\",IF('TENDER PACK 1b STORAGE(Sheet A)'!$S$103=1,\"Meets Requirements\",\"UNCHECKED\"))))","v":"Deposit Deed"},"No",{"$f":"'TENDER PACK 1b STORAGE(Sheet A)'!$H$117","v":0},{"$f":"'TENDER PACK 1b STORAGE(Sheet A)'!$H$119","v":0},"Storage User",{"$f":"'TENDER PACK 1b STORAGE(Sheet A)'!$H$125","v":"00:00:00"},{"$f":"'TENDER PACK 1b STORAGE(Sheet A)'!$H$197","v":0},{"$f":"'TENDER PACK 1b STORAGE(Sheet A)'!$H$145","v":0},{"$f":"'TENDER PACK 1b STORAGE(Sheet A)'!$H$147","v":0},{"$f":"'TENDER PACK 1b STORAGE(Sheet A)'!$H$149","v":"00:00:00"},{"$f":"'TENDER PACK 1b STORAGE(Sheet A)'!$H$153","v":0},{"$f":"'TENDER PACK 1b STORAGE(Sheet A)'!$H$155","v":0},{"$f":"'TENDER PACK 1b STORAGE(Sheet A)'!$H$162","v":0},{"$f":"'TENDER PACK 1b STORAGE(Sheet A)'!$H$164","v":0},{"$f":"'TENDER PACK 1b STORAGE(Sheet A)'!$H$166","v":0},{"$f":"'TENDER PACK 1b STORAGE(Sheet A)'!$H$168","v":0},{"$f":"'TENDER PACK 1b STORAGE(Sheet A)'!$D$197","v":6},{"$f":"'TENDER PACK 1b STORAGE(Sheet A)'!$F$197","v":0},{"$f":"'TENDER PACK 1b STORAGE(Sheet A)'!$J$197","v":0},{"$f":"'TENDER PACK 1b STORAGE(Sheet A)'!$L$197","v":0},{"$f":"'TENDER PACK 1b STORAGE(Sheet A)'!$P$197","v":0},null,{"$f":"'TENDER PACK 1b STORAGE(Sheet A)'!$H$171","v":0},{"$f":"'TENDER PACK 1b STORAGE(Sheet A)'!$H$222","v":0}]
[null,null,null,"..",{"$f":"'TENDER PACK 1b STORAGE(Sheet A)'!$H$88","v":0},{"$f":"'TENDER PACK 1b STORAGE(Sheet A)'!$H$90","v":0},{"$f":"'TENDER PACK 1b STORAGE(Sheet A)'!$H$91","v":0},{"$f":"'TENDER PACK 1b STORAGE(Sheet A)'!$H$94","v":0},{"$f":"'TENDER PACK 1b STORAGE(Sheet A)'!$H$95","v":0},{"$f":"'TENDER PACK 1b STORAGE(Sheet A)'!$H$96","v":0},{"$f":"'TENDER PACK 1b STORAGE(Sheet A)'!$H$97","v":0},{"$f":"'TENDER PACK 1b STORAGE(Sheet A)'!$H$98","v":0},{"$f":"'TENDER PACK 1b STORAGE(Sheet A)'!$H$100","v":0},{"$f":"'TENDER PACK 1b STORAGE(Sheet A)'!$H$102","v":0},{"$f":"IF('TENDER PACK 1b STORAGE(Sheet A)'!$S$103=2,\"Parent Company Guarantee\",IF('TENDER PACK 1b STORAGE(Sheet A)'!$S$103=3,\"Letter of Credit\", IF('TENDER PACK 1b STORAGE(Sheet A)'!$S$103=4,\"Deposit Deed\",IF('TENDER PACK 1b STORAGE(Sheet A)'!$S$103=1,\"Meets Requirements\",\"UNCHECKED\"))))","v":"Deposit Deed"},"No",{"$f":"'TENDER PACK 1b STORAGE(Sheet A)'!$H$117","v":0},{"$f":"'TENDER PACK 1b STORAGE(Sheet A)'!$H$119","v":0},"Storage User",{"$f":"'TENDER PACK 1b STORAGE(Sheet A)'!$H$125","v":"00:00:00"},{"$f":"'TENDER PACK 1b STORAGE(Sheet A)'!$H$199","v":0},{"$f":"'TENDER PACK 1b STORAGE(Sheet A)'!$H$145","v":0},{"$f":"'TENDER PACK 1b STORAGE(Sheet A)'!$H$147","v":0},{"$f":"'TENDER PACK 1b STORAGE(Sheet A)'!$H$149","v":"00:00:00"},{"$f":"'TENDER PACK 1b STORAGE(Sheet A)'!$H$153","v":0},{"$f":"'TENDER PACK 1b STORAGE(Sheet A)'!$H$155","v":0},{"$f":"'TENDER PACK 1b STORAGE(Sheet A)'!$H$162","v":0},{"$f":"'TENDER PACK 1b STORAGE(Sheet A)'!$H$164","v":0},{"$f":"'TENDER PACK 1b STORAGE(Sheet A)'!$H$166","v":0},{"$f":"'TENDER PACK 1b STORAGE(Sheet A)'!$H$168","v":0},{"$f":"'TENDER PACK 1b STORAGE(Sheet A)'!$D$199","v":7},{"$f":"'TENDER PACK 1b STORAGE(Sheet A)'!$F$199","v":0},{"$f":"'TENDER PACK 1b STORAGE(Sheet A)'!$J$199","v":0},{"$f":"'TENDER PACK 1b STORAGE(Sheet A)'!$L$199","v":0},{"$f":"'TENDER PACK 1b STORAGE(Sheet A)'!$P$199","v":0},null,{"$f":"'TENDER PACK 1b STORAGE(Sheet A)'!$H$171","v":0},{"$f":"'TENDER PACK 1b STORAGE(Sheet A)'!$H$222","v":0}]
[null,null,null,"..",{"$f":"'TENDER PACK 1b STORAGE(Sheet A)'!$H$88","v":0},{"$f":"'TENDER PACK 1b STORAGE(Sheet A)'!$H$90","v":0},{"$f":"'TENDER PACK 1b STORAGE(Sheet A)'!$H$91","v":0},{"$f":"'TENDER PACK 1b STORAGE(Sheet A)'!$H$94","v":0},{"$f":"'TENDER PACK 1b STORAGE(Sheet A)'!$H$95","v":0},{"$f":"'TENDER PACK 1b STORAGE(Sheet A)'!$H$96","v":0},{"$f":"'TENDER PACK 1b STORAGE(Sheet A)'!$H$97","v":0},{"$f":"'TENDER PACK 1b STORAGE(Sheet A)'!$H$98","v":0},{"$f":"'TENDER PACK 1b STORAGE(Sheet A)'!$H$100","v":0},{"$f":"'TENDER PACK 1b STORAGE(Sheet A)'!$H$102","v":0},{"$f":"IF('TENDER PACK 1b STORAGE(Sheet A)'!$S$103=2,\"Parent Company Guarantee\",IF('TENDER PACK 1b STORAGE(Sheet A)'!$S$103=3,\"Letter of Credit\", IF('TENDER PACK 1b STORAGE(Sheet A)'!$S$103=4,\"Deposit Deed\",IF('TENDER PACK 1b STORAGE(Sheet A)'!$S$103=1,\"Meets Requirements\",\"UNCHECKED\"))))","v":"Deposit Deed"},"No",{"$f":"'TENDER PACK 1b STORAGE(Sheet A)'!$H$117","v":0},{"$f":"'TENDER PACK 1b STORAGE(Sheet A)'!$H$119","v":0},"Storage User",{"$f":"'TENDER PACK 1b STORAGE(Sheet A)'!$H$125","v":"00:00:00"},{"$f":"'TENDER PACK 1b STORAGE(Sheet A)'!$H$201","v":0},{"$f":"'TENDER PACK 1b STORAGE(Sheet A)'!$H$145","v":0},{"$f":"'TENDER PACK 1b STORAGE(Sheet A)'!$H$147","v":0},{"$f":"'TENDER PACK 1b STORAGE(Sheet A)'!$H$149","v":"00:00:00"},{"$f":"'TENDER PACK 1b STORAGE(Sheet A)'!$H$153","v":0},{"$f":"'TENDER PACK 1b STORAGE(Sheet A)'!$H$155","v":0},{"$f":"'TENDER PACK 1b STORAGE(Sheet A)'!$H$162","v":0},{"$f":"'TENDER PACK 1b STORAGE(Sheet A)'!$H$164","v":0},{"$f":"'TENDER PACK 1b STORAGE(Sheet A)'!$H$166","v":0},{"$f":"'TENDER PACK 1b STORAGE(Sheet A)'!$H$168","v":0},{"$f":"'TENDER PACK 1b STORAGE(Sheet A)'!$D$201","v":8},{"$f":"'TENDER PACK 1b STORAGE(Sheet A)'!$F$201","v":0},{"$f":"'TENDER PACK 1b STORAGE(Sheet A)'!$J$201","v":0},{"$f":"'TENDER PACK 1b STORAGE(Sheet A)'!$L$201","v":0},{"$f":"'TENDER PACK 1b STORAGE(Sheet A)'!$P$201","v":0},null,{"$f":"'TENDER PACK 1b STORAGE(Sheet A)'!$H$171","v":0},{"$f":"'TENDER PACK 1b STORAGE(Sheet A)'!$H$222","v":0}]
[null,null,null,"..",{"$f":"'TENDER PACK 1b STORAGE(Sheet A)'!$H$88","v":0},{"$f":"'TENDER PACK 1b STORAGE(Sheet A)'!$H$90","v":0},{"$f":"'TENDER PACK 1b STORAGE(Sheet A)'!$H$91","v":0},{"$f":"'TENDER PACK 1b STORAGE(Sheet A)'!$H$94","v":0},{"$f":"'TENDER PACK 1b STORAGE(Sheet A)'!$H$95","v":0},{"$f":"'TENDER PACK 1b STORAGE(Sheet A)'!$H$96","v":0},{"$f":"'TENDER PACK 1b STORAGE(Sheet A)'!$H$97","v":0},{"$f":"'TENDER PACK 1b STORAGE(Sheet A)'!$H$98","v":0},{"$f":"'TENDER PACK 1b STORAGE(Sheet A)'!$H$100","v":0},{"$f":"'TENDER PACK 1b STORAGE(Sheet A)'!$H$102","v":0},{"$f":"IF('TENDER PACK 1b STORAGE(Sheet A)'!$S$103=2,\"Parent Company Guarantee\",IF('TENDER PACK 1b STORAGE(Sheet A)'!$S$103=3,\"Letter of Credit\", IF('TENDER PACK 1b STORAGE(Sheet A)'!$S$103=4,\"Deposit Deed\",IF('TENDER PACK 1b STORAGE(Sheet A)'!$S$103=1,\"Meets Requirements\",\"UNCHECKED\"))))","v":"Deposit Deed"},"No",{"$f":"'TENDER PACK 1b STORAGE(Sheet A)'!$H$117","v":0},{"$f":"'TENDER PACK 1b STORAGE(Sheet A)'!$H$119","v":0},"Storage User",{"$f":"'TENDER PACK 1b STORAGE(Sheet A)'!$H$125","v":"00:00:00"},{"$f":"'TENDER PACK 1b STORAGE(Sheet A)'!$H$203","v":0},{"$f":"'TENDER PACK 1b STORAGE(Sheet A)'!$H$145","v":0},{"$f":"'TENDER PACK 1b STORAGE(Sheet A)'!$H$147","v":0},{"$f":"'TENDER PACK 1b STORAGE(Sheet A)'!$H$149","v":"00:00:00"},{"$f":"'TENDER PACK 1b STORAGE(Sheet A)'!$H$153","v":0},{"$f":"'TENDER PACK 1b STORAGE(Sheet A)'!$H$155","v":0},{"$f":"'TENDER PACK 1b STORAGE(Sheet A)'!$H$162","v":0},{"$f":"'TENDER PACK 1b STORAGE(Sheet A)'!$H$164","v":0},{"$f":"'TENDER PACK 1b STORAGE(Sheet A)'!$H$166","v":0},{"$f":"'TENDER PACK 1b STORAGE(Sheet A)'!$H$168","v":0},{"$f":"'TENDER PACK 1b STORAGE(Sheet A)'!$D$203","v":9},{"$f":"'TENDER PACK 1b STORAGE(Sheet A)'!$F$203","v":0},{"$f":"'TENDER PACK 1b STORAGE(Sheet A)'!$J$203","v":0},{"$f":"'TENDER PACK 1b STORAGE(Sheet A)'!$L$203","v":0},{"$f":"'TENDER PACK 1b STORAGE(Sheet A)'!$P$203","v":0},null,{"$f":"'TENDER PACK 1b STORAGE(Sheet A)'!$H$171","v":0},{"$f":"'TENDER PACK 1b STORAGE(Sheet A)'!$H$222","v":0}]
[null,null,null,"..",{"$f":"'TENDER PACK 1b STORAGE(Sheet A)'!$H$88","v":0},{"$f":"'TENDER PACK 1b STORAGE(Sheet A)'!$H$90","v":0},{"$f":"'TENDER PACK 1b STORAGE(Sheet A)'!$H$91","v":0},{"$f":"'TENDER PACK 1b STORAGE(Sheet A)'!$H$94","v":0},{"$f":"'TENDER PACK 1b STORAGE(Sheet A)'!$H$95","v":0},{"$f":"'TENDER PACK 1b STORAGE(Sheet A)'!$H$96","v":0},{"$f":"'TENDER PACK 1b STORAGE(Sheet A)'!$H$97","v":0},{"$f":"'TENDER PACK 1b STORAGE(Sheet A)'!$H$98","v":0},{"$f":"'TENDER PACK 1b STORAGE(Sheet A)'!$H$100","v":0},{"$f":"'TENDER PACK 1b STORAGE(Sheet A)'!$H$102","v":0},{"$f":"IF('TENDER PACK 1b STORAGE(Sheet A)'!$S$103=2,\"Parent Company Guarantee\",IF('TENDER PACK 1b STORAGE(Sheet A)'!$S$103=3,\"Letter of Credit\", IF('TENDER PACK 1b STORAGE(Sheet A)'!$S$103=4,\"Deposit Deed\",IF('TENDER PACK 1b STORAGE(Sheet A)'!$S$103=1,\"Meets Requirements\",\"UNCHECKED\"))))","v":"Deposit Deed"},"No",{"$f":"'TENDER PACK 1b STORAGE(Sheet A)'!$H$117","v":0},{"$f":"'TENDER PACK 1b STORAGE(Sheet A)'!$H$119","v":0},"Storage User",{"$f":"'TENDER PACK 1b STORAGE(Sheet A)'!$H$125","v":"00:00:00"},{"$f":"'TENDER PACK 1b STORAGE(Sheet A)'!$H$205","v":0},{"$f":"'TENDER PACK 1b STORAGE(Sheet A)'!$H$145","v":0},{"$f":"'TENDER PACK 1b STORAGE(Sheet A)'!$H$147","v":0},{"$f":"'TENDER PACK 1b STORAGE(Sheet A)'!$H$149","v":"00:00:00"},{"$f":"'TENDER PACK 1b STORAGE(Sheet A)'!$H$153","v":0},{"$f":"'TENDER PACK 1b STORAGE(Sheet A)'!$H$155","v":0},{"$f":"'TENDER PACK 1b STORAGE(Sheet A)'!$H$162","v":0},{"$f":"'TENDER PACK 1b STORAGE(Sheet A)'!$H$164","v":0},{"$f":"'TENDER PACK 1b STORAGE(Sheet A)'!$H$166","v":0},{"$f":"'TENDER PACK 1b STORAGE(Sheet A)'!$H$168","v":0},{"$f":"'TENDER PACK 1b STORAGE(Sheet A)'!$D$205","v":10},{"$f":"'TENDER PACK 1b STORAGE(Sheet A)'!$F$205","v":0},{"$f":"'TENDER PACK 1b STORAGE(Sheet A)'!$J$205","v":0},{"$f":"'TENDER PACK 1b STORAGE(Sheet A)'!$L$205","v":0},{"$f":"'TENDER PACK 1b STORAGE(Sheet A)'!$P$205","v":0},null,{"$f":"'TENDER PACK 1b STORAGE(Sheet A)'!$H$171","v":0},{"$f":"'TENDER PACK 1b STORAGE(Sheet A)'!$H$222","v":0}]

{"sheet":"TENDER PACK 1b STORAGE(Sheet B)","index":2,"n_rows":227,"n_cols":19,"rows_kept":227,"cut":false,"hidden":false,"merged":[[15,3,21,16],[17,18,20,19],[23,3,23,16],[23,18,24,19],[24,3,24,16],[26,3,38,16],[27,18,29,19],[2,3,6,16],[3,18,5,19],[8,3,10,11],[8,12,10,12],[8,13,10,16],[12,3,13,16],[85,3,85,16],[87,2,88,2],[87,3,88,6],[87,7,88,16],[89,3,89,6],[89,7,89,16],[42,3,42,16],[43,3,47,16],[43,18,45,19],[49,3,61,16],[53,18,55,19],[82,3,83,16],[95,3,95,6],[95,7,95,16],[96,3,96,6],[96,7,96,16],[97,2,98,2],[97,3,98,6],[97,7,98,16],[90,2,92,2],[90,3,92,6],[90,7,92,16],[93,3,93,6],[93,7,93,16],[94,3,94,6],[94,7,94,16],[102,2,103,2],[102,3,103,6],[102,7,103,16],[104,2,107,2],[104,3,107,6],[104,7,107,16],[99,3,99,6],[99,7,99,16],[101,3,101,6],[101,7,101,16],[100,3,100,14],[118,2,120,2],[118,3,120,6],[118,7,120,16],[121,2,122,2],[121,3,123,6],[121,9,122,16],[109,3,109,16],[111,3,112,16],[114,3,114,16],[116,2,117,2],[116,3,117,6],[116,7,117,16],[129,2,132,2],[129,3,132,6],[129,7,132,16],[136,3,137,16],[139,3,139,16],[141,2,142,2],[141,3,143,16],[124,2,125,2],[124,3,125,6],[124,7,125,16],[126,2,128,2],[126,3,128,6],[126,7,128,16],[148,2,151,2],[148,3,151,6],[148,7,151,14],[148,15,151,16],[152,2,153,2],[152,3,153,6],[152,7,153,16],[144,2,145,2],[144,3,145,6],[144,7,145,14],[144,15,145,16],[146,2,147,2],[146,3,147,6],[146,7,147,14],[146,15,147,16],[154,2,155,2],[154,3,155,6],[154,7,155,16],[157,3,157,16],[159,3,159,16],[161,2,162,2],[161,3,162,6],[161,7,162,14],[161,15,162,16],[167,2,168,2],[167,3,168,6],[167,7,168,14],[167,15,168,16],[170,2,172,2],[170,3,172,6],[170,7,172,14],[170,15,172,16],[163,2,164,2],[163,3,164,6],[163,7,164,14],[163,15,164,16],[165,2,166,2],[165,3,166,6],[165,7,166,14],[165,15,166,16],[176,3,177,16],[179,3,179,16],[180,3,180,4],[180,5,180,6],[180,7,180,8],[180,9,180,10],[180,11,180,12],[180,13,180,14],[180,15,180,16],[181,15,185,16],[186,3,187,4],[186,5,187,6],[186,7,187,8],[186,9,187,10],[186,11,187,12],[186,13,187,14],[186,15,187,16],[181,3,185,4],[181,5,185,6],[181,7,185,8],[181,9,185,10],[181,11,185,12],[181,13,185,14],[188,15,189,16],[190,3,191,4],[190,5,191,6],[190,7,191,8],[190,9,191,10],[190,11,191,12],[190,13,191,14],[190,15,191,16],[188,3,189,4],[188,5,189,6],[188,7,189,8],[188,9,189,10],[188,11,189,12],[188,13,189,14],[192,15,193,16],[194,3,195,4],[194,5,195,6],[194,7,195,8],[194,9,195,10],[194,11,195,12],[194,13,195,14],[194,15,195,16],[192,3,193,4],[192,5,193,6],[192,7,193,8],[192,9,193,10],[192,11,193,12],[192,13,193,14],[196,15,197,16],[198,3,199,4],[198,5,199,6],[198,7,199,8],[198,9,199,10],[198,11,199,12],[198,13,199,14],[198,15,199,16],[196,3,197,4],[196,5,197,6],[196,7,197,8],[196,9,197,10],[196,11,197,12],[196,13,197,14],[200,15,201,16],[202,3,203,4],[202,5,203,6],[202,7,203,8],[202,9,203,10],[202,11,203,12],[202,13,203,14],[202,15,203,16],[200,3,201,4],[200,5,201,6],[200,7,201,8],[200,9,201,10],[200,11,201,12],[200,13,201,14],[204,15,205,16],[206,3,207,4],[206,5,207,6],[206,7,207,8],[206,9,207,10],[206,11,207,12],[206,13,207,14],[206,15,207,16],[204,3,205,4],[204,5,205,6],[204,7,205,8],[204,9,205,10],[204,11,205,12],[204,13,205,14],[224,3,224,16],[225,3,225,16],[226,3,226,10],[226,11,226,16],[216,3,217,16],[219,3,219,16],[221,2,222,2],[221,3,222,6],[221,7,222,14],[221,15,222,16]]}
[]
[]
[null,null,null,"TENDER PACK 1B\nOPERATING MARGINS\n2026/27 GAS CAPACITY TENDER (GAS STORAGE FACILITY USER)\nSHEET B - OPTIONAL 12 MONTH BID"]
[]
[]
[]
[]
[]
[null,null,null,"This tender pack is designed for:\n• Capacity Holders at Gas Storage Facilities - Service Providers who are a third party Storage User at a Storage Facility, i.e. the Storage User is not operator of the Storage Facility, or where the Service Provider is an affiliate of the Facility Operator.",null,null,null,null,null,null,null,null,null,"Submission of this sheet is optional for Storage Tenderers"]
[]
[]
[]
[null,null,null,"Issued November 2025"]
[]
[]
[null,null,null,"Produced by National Gas Transmission\nNational Gas Transmission plc\nWarwick Technology Park\nGallows Hill\nWarwick\nCV34 6DA"]
[]
[]
[]
[]
[]
[]
[]
[null,null,null,"Website:"]
[null,null,null,"https://www.nationalgas.com/our-businesses/operating-margins"]
[]
[null,null,null,"PLEASE NOTE:\nThis document should be read in conjunction with the template Operating Margins agreements (found on the Operating Margins Homepage) and the document entitled \"Tender Guidance Document 2026/27\".\n\nSpecific guidance on how to complete these tender sheets is provided in Sections 7 & 8 of the Operating Margins Tender Guidance Document with specific cross-references to these tender sheets via superscript numbers adjacent to the relevant fields of information. Please also refer to Section 6 \"Requirements of the Tender Process\" in order to understand what must accompany the tender sheets as part of submission in order that assessment can proceed on any tenders received.\n\nTerms and phrases used in this document have the meanings set out or referred to in the template Operating Margins agreements and/or the Operating Margins Tender Guidance Document."]
[]
[]
[]
[]
[]
[]
[]
[]
[]
[]
[]
[]
[]
[]
[]
[null,null,null,"IMPORTANT INFORMATION - PLEASE READ:"]
[null,null,null,"• All parts of 'Sheet A' must be completed by all Storage User tenderers and submitted to be eligible for assessment.\n• A tenderer may submit an additional proposal for a 12 month OM service in the form of 'Sheet B', whereby tranches are split differently. This is optional.\n\n\n**Volumes in Sheets A and B will be treated as mutually exclusive - i.e. National Gas will only consider accepting tranche(s) from ONE of Sheet A or Sheet B.**"]
[]
[]
[]
[]
[]
[null,null,null,"Completed Tenders should be submitted by 13:00 hours (GMT) on Wednesday 7th January 2026 via Ariba.\n\nThe completed Tender Pack should be uploaded with a filename which includes the company name and site.\nAfter uploading the Tender Pack document, terms and conditions must be accepted before submitting.\nSubmissions can be revised until the deadline."]
[]
[]
[]
[]
[]
[]
[]
[]
[]
[]
[]
[]
[]
[]
[]
[]
[]
[]
[]
[]
[]
[]
[]
[]
[]
[]
[]
[]
[]
[]
[]
[]
[null,null,null,"2026/27 OM GAS CAPACITY TENDER"]
[]
[]
[null,null,null,"Part 1: Tenderer Details"]
[]
[null,null,1,"Tenderer's Company Name\n(Including registered office address and company number)"]
[]
[null,null,2,"Company Representative, Job Title"]
[null,null,3,"Company Representative Address\n(full address including postcode)"]
[]
[]
[null,null,4,"Telephone Number"]
[]
[null,null,5,"Email Address"]
[null,null,6,"Legal Agent Name"]
[null,null,7,"Legal Agent Address"]
[]
[null,null,8,"Shipper Short Code"]
[null,null,9,"Please confirm that your organisation uses an accredited and industry-recognised digital security management system that manages cyber and information security risks across the full asset lifecycle, including design, architecture, development, testing, commissioning, and post-installation support.\n \nExamples of acceptable standards include (but are not limited to) the following:\n \n•\tISO/IEC 27001 certification\n•\tCyber Essentials / Cyber Essentials Plus (UK government-backed)\n•\tIEC 62443 (for industrial control systems)\n•\tAlignment with the NIST Cybersecurity Framework\n \nNotes:\nIf successful and following contract award notification, OM Service providers will be required to complete a security questionnaire, in order for National Gas to ensure audit compliance.  \n \nIf you fail to provide a response to this question, NGT reserves the right to discount you from the tender process.",null,null,null,null,null,null,null,null,null,null,null,"Click checkbox to confirm agreement and adherence ",false]
[null,null,10,"Achilles Registration Number"]
[null,null,11,"Type of Credit Security Provided ",null,null,null,null,null,null,null,null,null,null,null,null,null,null,4]
[]
[]
[]
[]
[]
[]
[null,null,null,"Part 2"]
[]
[null,null,null,"[See OM Tenderers Contract Response Form if such amendments are proposed]\nIf no amendments are proposed please go to Part 3"]
[]
[]
[null,null,null,"Part 3: Facility Details"]
[]
[null,null,12,"Facility Name\n(including company number if different)"]
[]
[null,null,13,"Facility Location\n(full address including postcode)"]
[]
[]
[null,null,null,null,null,null,null,null,null,null,null,null,null,null,null,null,null,null,2]
[]
[]
[null,null,14,"Execution Date For Tenderer’s Agreement With Facility Operator (Gas Storage Agreement)"]
[]
[null,null,15,"Duration of Service",null,null,null,"12 Months (01/05/2026- 30/04/2027)"]
[]
[]
[null,null,16,"Service Provider contact details for operational notices\nEmployee Position / role, Address, Telephone numbers and email details."]
[]
[]
[]
[]
[]
[]
[null,null,null,"2026/27 OM GAS CAPACITY TENDER"]
[]
[]
[null,null,null,"Part 4: Deliverability & Availability"]
[]
[null,null,null,"FOR ENTERING STORAGE WITHDRAWAL AND INJECTION  RATES PLEASE SEE 29 AND 30\n "]
[]
[]
[null,null,17,"Withdrawal Response Time",null,null,null,null,null,null,null,null,null,null,null,"Minutes"]
[]
[null,null,18,"Injection Response Time",null,null,null,null,null,null,null,null,null,null,null,"As defined by tenderer"]
[]
[null,null,19,"Planned Maintenance Periods",null,null,null,null,null,null,null,null,null,null,null,"Dates"]
[]
[]
[]
[null,null,20,"Website for Service Availability / Unavailability"]
[]
[null,null,21,"Allocation Agent                                                                  (Name, Address, Tel No)"]
[]
[]
[null,null,null,"Part 5: Charges & Capacity"]
[]
[null,null,null,"Where charges are to be levied for the provision / use of this service, these must be quantified below"]
[]
[null,null,22,"Injection Charge Rate\n(optional)",null,null,null,null,null,null,null,null,null,null,null,"p/kWh"]
[]
[null,null,23,"Withdrawal Charge Rate\n(optional)",null,null,null,null,null,null,null,null,null,null,null,"p/kWh"]
[]
[null,null,24,"Injection Overrun Charge Rate\n(optional)",null,null,null,null,null,null,null,null,null,null,null,"p/kWh"]
[]
[null,null,25,"Withdrawal Overrun Charge Rate\n(optional)",null,null,null,null,null,null,null,null,null,null,null,"p/kWh"]
[]
[]
[null,null,26,"Additional SP Withdrawal Capacity Charge Rate ",null,null,null,null,null,null,null,null,null,null,null,"p/kWh"]
[]
[]
[]
[]
[]
[null,null,null,"2026/27 OM GAS CAPACITY TENDER"]
[]
[]
[null,null,null,"Part 5: Charges & Capacity (Continued)"]
[null,null,null,27,null,28,null,29,null,30,null,31,null,32,null,33]
[null,null,null,"Capacity Procurement Tranche Number",null,"Storage Space (in kWh)",null,"Storage Withdrawal Capacity (in kWh per day) this must be greater than or equal to Storage Space. ",null,"Storage Injection Capacity (in kWh per day)",null,"Annual Service Fee (in pence per kWh per annum)",null,"Annual Service Fee (£)",null,"Tranche may only be accepted in full (YES / NO)"]
[]
[]
[]
[]
[null,null,null,1,null,null,null,null,null,null,null,null,null,{"$f":"(L187*F187)/100","v":0},null,null,null,null,false]
[]
[null,null,null,2,null,null,null,null,null,null,null,null,null,{"$f":"(L189*F189)/100","v":0},null,null,null,null,false]
[]
[null,null,null,3,null,null,null,null,null,null,null,null,null,{"$f":"(L191*F191)/100","v":0},null,null,null,null,false]
[]
[null,null,null,4,null,null,null,null,null,null,null,null,null,{"$f":"(L193*F193)/100","v":0},null,null,null,null,false]
[]
[null,null,null,5,null,null,null,null,null,null,null,null,null,{"$f":"(L195*F195)/100","v":0}]
[]
[null,null,null,6,null,null,null,null,null,null,null,null,null,{"$f":"(L197*F197)/100","v":0},null,null,null,null,false]
[]
[null,null,null,7,null,null,null,null,null,null,null,null,null,{"$f":"(L199*F199)/100","v":0},null,null,null,null,false]
[]
[null,null,null,8,null,null,null,null,null,null,null,null,null,{"$f":"(L201*F201)/100","v":0},null,null,null,null,false]
[]
[null,null,null,9,null,null,null,null,null,null,null,null,null,{"$f":"(L203*F203)/100","v":0},null,null,null,null,false]
[]
[null,null,null,10,null,null,null,null,null,null,null,null,null,{"$f":"(L205*F205)/100","v":0},null,null,null,null,false]
[]
[null,null,null,"Total",null,{"$f":"SUM(F187:G206)","v":0},null,{"$f":"SUM(H187:I206)","v":0},null,{"$f":"SUM(J187:K206)","v":0},null,null,null,{"$f":"SUM(N187:O206)","v":0}]
[]
[]
[]
[]
[]
[]
[]
[]
[]
[null,null,null,"2026/27 OM GAS CAPACITY TENDER\n"]
[]
[]
[null,null,null,"Part 6: Facility Withdrawal Capacity"]
[]
[null,null,34,"Nameplate Facility Withdrawal Rate",null,null,null,null,null,null,null,null,null,null,null,"kWh/h"]
[]
[]
[null,null,35,"Facility Performance Curve"]
[null,null,null,"Please use the below space to describe the deliverability at different stock levels"]
[null,null,null,"Facility Gas In Storage (kWh)",null,null,null,null,null,null,null,"Maximum Facility Withdrawal Rate (kWh/h)"]

{"sheet":"DC1B","index":3,"n_rows":13,"n_cols":38,"rows_kept":13,"cut":false,"hidden":true,"merged":[[0,2,1,9]]}
[null,null,"Data Collection Tab for Contracts Team"]
[]
["Tender Pack","Tender Ref","Tranche Ref","Main Ref","Tenderer's Company Name","Company Representative","Company Representative Address","Telephone Number","Facsimile Number","E-Mail Address","Legal Agent Name","Legal Agent Address","Shipper Short Code","Achilles Registration Number","Type of credit security provided","Winter only?","Facility Name","Facility Location","Service Provision Category","Execution Date for Tenderer's Agreement With Facility Operator","Storage Withdrawal Capacity, kWh/Day","Withdrawal Response Time, Minutes","Injection Response Time, Minutes","Planned Maintenenace Periods, Dates","Website for Clauses","Allocation Agent","Injection Charge Rate (Optional), p/kWh","Withdrawal Charge Rate (Optional), p/kWh","Injection Overrun Charge Rate (Optional), p/kWh","Withdrawal Overrun Charge Rate (Optional), p/kWh","Capacity Procurement Tranche Number","Storage Space, kWh","Storage Injection Capacity, kWh / day","Annual Service Fee, p/kWh pa","Please tick if the tranche may only be accepted in full","Has Facility Withdrawal Capacity been entered?","Additional SP Withdrawal Capacity Charge Rate ","Nameplate"]
[null,null,null,{"$f":"A4&\".\"&B4&\".\"&C4","v":".."},{"$f":"#REF!","v":{"$error":"#REF!"}},{"$f":"#REF!","v":{"$error":"#REF!"}},{"$f":"#REF!","v":{"$error":"#REF!"}},{"$f":"#REF!","v":{"$error":"#REF!"}},{"$f":"#REF!","v":{"$error":"#REF!"}},{"$f":"#REF!","v":{"$error":"#REF!"}},{"$f":"#REF!","v":{"$error":"#REF!"}},{"$f":"#REF!","v":{"$error":"#REF!"}},{"$f":"#REF!","v":{"$error":"#REF!"}},{"$f":"#REF!","v":{"$error":"#REF!"}},{"$f":"IF(#REF!=2,\"Parent Company Guarantee\",IF(#REF!=3,\"Letter of Credit\",IF(#REF!=4,\"Deposit Deed\",IF(#REF!=1,\"Meets Requirements\",\"UNCHECKED\"))))","v":{"$error":"#REF!"}},"No",{"$f":"#REF!","v":{"$error":"#REF!"}},{"$f":"#REF!","v":{"$error":"#REF!"}},"Storage User",{"$f":"#REF!","v":{"$error":"#REF!"}},{"$f":"#REF!","v":{"$error":"#REF!"}},{"$f":"#REF!","v":{"$error":"#REF!"}},{"$f":"#REF!","v":{"$error":"#REF!"}},{"$f":"#REF!","v":{"$error":"#REF!"}},{"$f":"#REF!","v":{"$error":"#REF!"}},{"$f":"#REF!","v":{"$error":"#REF!"}},{"$f":"#REF!","v":{"$error":"#REF!"}},{"$f":"#REF!","v":{"$error":"#REF!"}},{"$f":"#REF!","v":{"$error":"#REF!"}},{"$f":"#REF!","v":{"$error":"#REF!"}},{"$f":"#REF!","v":{"$error":"#REF!"}},{"$f":"#REF!","v":{"$error":"#REF!"}},{"$f":"#REF!","v":{"$error":"#REF!"}},{"$f":"#REF!","v":{"$error":"#REF!"}},{"$f":"#REF!","v":{"$error":"#REF!"}},null,{"$f":"#REF!","v":{"$error":"#REF!"}},{"$f":"#REF!","v":{"$error":"#REF!"}}]
[null,null,null,"..",{"$f":"#REF!","v":{"$error":"#REF!"}},{"$f":"#REF!","v":{"$error":"#REF!"}},{"$f":"#REF!","v":{"$error":"#REF!"}},{"$f":"#REF!","v":{"$error":"#REF!"}},{"$f":"#REF!","v":{"$error":"#REF!"}},{"$f":"#REF!","v":{"$error":"#REF!"}},{"$f":"#REF!","v":{"$error":"#REF!"}},{"$f":"#REF!","v":{"$error":"#REF!"}},{"$f":"#REF!","v":{"$error":"#REF!"}},{"$f":"#REF!","v":{"$error":"#REF!"}},{"$f":"IF(#REF!=2,\"Parent Company Guarantee\",IF(#REF!=3,\"Letter of Credit\",IF(#REF!=4,\"Deposit Deed\",IF(#REF!=1,\"Meets Requirements\",\"UNCHECKED\"))))","v":{"$error":"#REF!"}},"No",{"$f":"#REF!","v":{"$error":"#REF!"}},{"$f":"#REF!","v":{"$error":"#REF!"}},"Storage User",{"$f":"#REF!","v":{"$error":"#REF!"}},{"$f":"#REF!","v":{"$error":"#REF!"}},{"$f":"#REF!","v":{"$error":"#REF!"}},{"$f":"#REF!","v":{"$error":"#REF!"}},{"$f":"#REF!","v":{"$error":"#REF!"}},{"$f":"#REF!","v":{"$error":"#REF!"}},{"$f":"#REF!","v":{"$error":"#REF!"}},{"$f":"#REF!","v":{"$error":"#REF!"}},{"$f":"#REF!","v":{"$error":"#REF!"}},{"$f":"#REF!","v":{"$error":"#REF!"}},{"$f":"#REF!","v":{"$error":"#REF!"}},{"$f":"#REF!","v":{"$error":"#REF!"}},{"$f":"#REF!","v":{"$error":"#REF!"}},{"$f":"#REF!","v":{"$error":"#REF!"}},{"$f":"#REF!","v":{"$error":"#REF!"}},{"$f":"#REF!","v":{"$error":"#REF!"}},null,{"$f":"#REF!","v":{"$error":"#REF!"}},{"$f":"#REF!","v":{"$error":"#REF!"}}]
[null,null,null,"..",{"$f":"#REF!","v":{"$error":"#REF!"}},{"$f":"#REF!","v":{"$error":"#REF!"}},{"$f":"#REF!","v":{"$error":"#REF!"}},{"$f":"#REF!","v":{"$error":"#REF!"}},{"$f":"#REF!","v":{"$error":"#REF!"}},{"$f":"#REF!","v":{"$error":"#REF!"}},{"$f":"#REF!","v":{"$error":"#REF!"}},{"$f":"#REF!","v":{"$error":"#REF!"}},{"$f":"#REF!","v":{"$error":"#REF!"}},{"$f":"#REF!","v":{"$error":"#REF!"}},{"$f":"IF(#REF!=2,\"Parent Company Guarantee\",IF(#REF!=3,\"Letter of Credit\",IF(#REF!=4,\"Deposit Deed\",IF(#REF!=1,\"Meets Requirements\",\"UNCHECKED\"))))","v":{"$error":"#REF!"}},"No",{"$f":"#REF!","v":{"$error":"#REF!"}},{"$f":"#REF!","v":{"$error":"#REF!"}},"Storage User",{"$f":"#REF!","v":{"$error":"#REF!"}},{"$f":"#REF!","v":{"$error":"#REF!"}},{"$f":"#REF!","v":{"$error":"#REF!"}},{"$f":"#REF!","v":{"$error":"#REF!"}},{"$f":"#REF!","v":{"$error":"#REF!"}},{"$f":"#REF!","v":{"$error":"#REF!"}},{"$f":"#REF!","v":{"$error":"#REF!"}},{"$f":"#REF!","v":{"$error":"#REF!"}},{"$f":"#REF!","v":{"$error":"#REF!"}},{"$f":"#REF!","v":{"$error":"#REF!"}},{"$f":"#REF!","v":{"$error":"#REF!"}},{"$f":"#REF!","v":{"$error":"#REF!"}},{"$f":"#REF!","v":{"$error":"#REF!"}},{"$f":"#REF!","v":{"$error":"#REF!"}},{"$f":"#REF!","v":{"$error":"#REF!"}},{"$f":"#REF!","v":{"$error":"#REF!"}},null,{"$f":"#REF!","v":{"$error":"#REF!"}},{"$f":"#REF!","v":{"$error":"#REF!"}}]
[null,null,null,"..",{"$f":"#REF!","v":{"$error":"#REF!"}},{"$f":"#REF!","v":{"$error":"#REF!"}},{"$f":"#REF!","v":{"$error":"#REF!"}},{"$f":"#REF!","v":{"$error":"#REF!"}},{"$f":"#REF!","v":{"$error":"#REF!"}},{"$f":"#REF!","v":{"$error":"#REF!"}},{"$f":"#REF!","v":{"$error":"#REF!"}},{"$f":"#REF!","v":{"$error":"#REF!"}},{"$f":"#REF!","v":{"$error":"#REF!"}},{"$f":"#REF!","v":{"$error":"#REF!"}},{"$f":"IF(#REF!=2,\"Parent Company Guarantee\",IF(#REF!=3,\"Letter of Credit\",IF(#REF!=4,\"Deposit Deed\",IF(#REF!=1,\"Meets Requirements\",\"UNCHECKED\"))))","v":{"$error":"#REF!"}},"No",{"$f":"#REF!","v":{"$error":"#REF!"}},{"$f":"#REF!","v":{"$error":"#REF!"}},"Storage User",{"$f":"#REF!","v":{"$error":"#REF!"}},{"$f":"#REF!","v":{"$error":"#REF!"}},{"$f":"#REF!","v":{"$error":"#REF!"}},{"$f":"#REF!","v":{"$error":"#REF!"}},{"$f":"#REF!","v":{"$error":"#REF!"}},{"$f":"#REF!","v":{"$error":"#REF!"}},{"$f":"#REF!","v":{"$error":"#REF!"}},{"$f":"#REF!","v":{"$error":"#REF!"}},{"$f":"#REF!","v":{"$error":"#REF!"}},{"$f":"#REF!","v":{"$error":"#REF!"}},{"$f":"#REF!","v":{"$error":"#REF!"}},{"$f":"#REF!","v":{"$error":"#REF!"}},{"$f":"#REF!","v":{"$error":"#REF!"}},{"$f":"#REF!","v":{"$error":"#REF!"}},{"$f":"#REF!","v":{"$error":"#REF!"}},{"$f":"#REF!","v":{"$error":"#REF!"}},null,{"$f":"#REF!","v":{"$error":"#REF!"}},{"$f":"#REF!","v":{"$error":"#REF!"}}]
[null,null,null,"..",{"$f":"#REF!","v":{"$error":"#REF!"}},{"$f":"#REF!","v":{"$error":"#REF!"}},{"$f":"#REF!","v":{"$error":"#REF!"}},{"$f":"#REF!","v":{"$error":"#REF!"}},{"$f":"#REF!","v":{"$error":"#REF!"}},{"$f":"#REF!","v":{"$error":"#REF!"}},{"$f":"#REF!","v":{"$error":"#REF!"}},{"$f":"#REF!","v":{"$error":"#REF!"}},{"$f":"#REF!","v":{"$error":"#REF!"}},{"$f":"#REF!","v":{"$error":"#REF!"}},{"$f":"IF(#REF!=2,\"Parent Company Guarantee\",IF(#REF!=3,\"Letter of Credit\",IF(#REF!=4,\"Deposit Deed\",IF(#REF!=1,\"Meets Requirements\",\"UNCHECKED\"))))","v":{"$error":"#REF!"}},"No",{"$f":"#REF!","v":{"$error":"#REF!"}},{"$f":"#REF!","v":{"$error":"#REF!"}},"Storage User",{"$f":"#REF!","v":{"$error":"#REF!"}},{"$f":"#REF!","v":{"$error":"#REF!"}},{"$f":"#REF!","v":{"$error":"#REF!"}},{"$f":"#REF!","v":{"$error":"#REF!"}},{"$f":"#REF!","v":{"$error":"#REF!"}},{"$f":"#REF!","v":{"$error":"#REF!"}},{"$f":"#REF!","v":{"$error":"#REF!"}},{"$f":"#REF!","v":{"$error":"#REF!"}},{"$f":"#REF!","v":{"$error":"#REF!"}},{"$f":"#REF!","v":{"$error":"#REF!"}},{"$f":"#REF!","v":{"$error":"#REF!"}},{"$f":"#REF!","v":{"$error":"#REF!"}},{"$f":"#REF!","v":{"$error":"#REF!"}},{"$f":"#REF!","v":{"$error":"#REF!"}},{"$f":"#REF!","v":{"$error":"#REF!"}},{"$f":"#REF!","v":{"$error":"#REF!"}},null,{"$f":"#REF!","v":{"$error":"#REF!"}},{"$f":"#REF!","v":{"$error":"#REF!"}}]
[null,null,null,"..",{"$f":"#REF!","v":{"$error":"#REF!"}},{"$f":"#REF!","v":{"$error":"#REF!"}},{"$f":"#REF!","v":{"$error":"#REF!"}},{"$f":"#REF!","v":{"$error":"#REF!"}},{"$f":"#REF!","v":{"$error":"#REF!"}},{"$f":"#REF!","v":{"$error":"#REF!"}},{"$f":"#REF!","v":{"$error":"#REF!"}},{"$f":"#REF!","v":{"$error":"#REF!"}},{"$f":"#REF!","v":{"$error":"#REF!"}},{"$f":"#REF!","v":{"$error":"#REF!"}},{"$f":"IF(#REF!=2,\"Parent Company Guarantee\",IF(#REF!=3,\"Letter of Credit\",IF(#REF!=4,\"Deposit Deed\",IF(#REF!=1,\"Meets Requirements\",\"UNCHECKED\"))))","v":{"$error":"#REF!"}},"No",{"$f":"#REF!","v":{"$error":"#REF!"}},{"$f":"#REF!","v":{"$error":"#REF!"}},"Storage User",{"$f":"#REF!","v":{"$error":"#REF!"}},{"$f":"#REF!","v":{"$error":"#REF!"}},{"$f":"#REF!","v":{"$error":"#REF!"}},{"$f":"#REF!","v":{"$error":"#REF!"}},{"$f":"#REF!","v":{"$error":"#REF!"}},{"$f":"#REF!","v":{"$error":"#REF!"}},{"$f":"#REF!","v":{"$error":"#REF!"}},{"$f":"#REF!","v":{"$error":"#REF!"}},{"$f":"#REF!","v":{"$error":"#REF!"}},{"$f":"#REF!","v":{"$error":"#REF!"}},{"$f":"#REF!","v":{"$error":"#REF!"}},{"$f":"#REF!","v":{"$error":"#REF!"}},{"$f":"#REF!","v":{"$error":"#REF!"}},{"$f":"#REF!","v":{"$error":"#REF!"}},{"$f":"#REF!","v":{"$error":"#REF!"}},{"$f":"#REF!","v":{"$error":"#REF!"}},null,{"$f":"#REF!","v":{"$error":"#REF!"}},{"$f":"#REF!","v":{"$error":"#REF!"}}]
[null,null,null,"..",{"$f":"#REF!","v":{"$error":"#REF!"}},{"$f":"#REF!","v":{"$error":"#REF!"}},{"$f":"#REF!","v":{"$error":"#REF!"}},{"$f":"#REF!","v":{"$error":"#REF!"}},{"$f":"#REF!","v":{"$error":"#REF!"}},{"$f":"#REF!","v":{"$error":"#REF!"}},{"$f":"#REF!","v":{"$error":"#REF!"}},{"$f":"#REF!","v":{"$error":"#REF!"}},{"$f":"#REF!","v":{"$error":"#REF!"}},{"$f":"#REF!","v":{"$error":"#REF!"}},{"$f":"IF(#REF!=2,\"Parent Company Guarantee\",IF(#REF!=3,\"Letter of Credit\",IF(#REF!=4,\"Deposit Deed\",IF(#REF!=1,\"Meets Requirements\",\"UNCHECKED\"))))","v":{"$error":"#REF!"}},"No",{"$f":"#REF!","v":{"$error":"#REF!"}},{"$f":"#REF!","v":{"$error":"#REF!"}},"Storage User",{"$f":"#REF!","v":{"$error":"#REF!"}},{"$f":"#REF!","v":{"$error":"#REF!"}},{"$f":"#REF!","v":{"$error":"#REF!"}},{"$f":"#REF!","v":{"$error":"#REF!"}},{"$f":"#REF!","v":{"$error":"#REF!"}},{"$f":"#REF!","v":{"$error":"#REF!"}},{"$f":"#REF!","v":{"$error":"#REF!"}},{"$f":"#REF!","v":{"$error":"#REF!"}},{"$f":"#REF!","v":{"$error":"#REF!"}},{"$f":"#REF!","v":{"$error":"#REF!"}},{"$f":"#REF!","v":{"$error":"#REF!"}},{"$f":"#REF!","v":{"$error":"#REF!"}},{"$f":"#REF!","v":{"$error":"#REF!"}},{"$f":"#REF!","v":{"$error":"#REF!"}},{"$f":"#REF!","v":{"$error":"#REF!"}},{"$f":"#REF!","v":{"$error":"#REF!"}},null,{"$f":"#REF!","v":{"$error":"#REF!"}},{"$f":"#REF!","v":{"$error":"#REF!"}}]
[null,null,null,"..",{"$f":"#REF!","v":{"$error":"#REF!"}},{"$f":"#REF!","v":{"$error":"#REF!"}},{"$f":"#REF!","v":{"$error":"#REF!"}},{"$f":"#REF!","v":{"$error":"#REF!"}},{"$f":"#REF!","v":{"$error":"#REF!"}},{"$f":"#REF!","v":{"$error":"#REF!"}},{"$f":"#REF!","v":{"$error":"#REF!"}},{"$f":"#REF!","v":{"$error":"#REF!"}},{"$f":"#REF!","v":{"$error":"#REF!"}},{"$f":"#REF!","v":{"$error":"#REF!"}},{"$f":"IF(#REF!=2,\"Parent Company Guarantee\",IF(#REF!=3,\"Letter of Credit\",IF(#REF!=4,\"Deposit Deed\",IF(#REF!=1,\"Meets Requirements\",\"UNCHECKED\"))))","v":{"$error":"#REF!"}},"No",{"$f":"#REF!","v":{"$error":"#REF!"}},{"$f":"#REF!","v":{"$error":"#REF!"}},"Storage User",{"$f":"#REF!","v":{"$error":"#REF!"}},{"$f":"#REF!","v":{"$error":"#REF!"}},{"$f":"#REF!","v":{"$error":"#REF!"}},{"$f":"#REF!","v":{"$error":"#REF!"}},{"$f":"#REF!","v":{"$error":"#REF!"}},{"$f":"#REF!","v":{"$error":"#REF!"}},{"$f":"#REF!","v":{"$error":"#REF!"}},{"$f":"#REF!","v":{"$error":"#REF!"}},{"$f":"#REF!","v":{"$error":"#REF!"}},{"$f":"#REF!","v":{"$error":"#REF!"}},{"$f":"#REF!","v":{"$error":"#REF!"}},{"$f":"#REF!","v":{"$error":"#REF!"}},{"$f":"#REF!","v":{"$error":"#REF!"}},{"$f":"#REF!","v":{"$error":"#REF!"}},{"$f":"#REF!","v":{"$error":"#REF!"}},{"$f":"#REF!","v":{"$error":"#REF!"}},null,{"$f":"#REF!","v":{"$error":"#REF!"}},{"$f":"#REF!","v":{"$error":"#REF!"}}]
[null,null,null,"..",{"$f":"#REF!","v":{"$error":"#REF!"}},{"$f":"#REF!","v":{"$error":"#REF!"}},{"$f":"#REF!","v":{"$error":"#REF!"}},{"$f":"#REF!","v":{"$error":"#REF!"}},{"$f":"#REF!","v":{"$error":"#REF!"}},{"$f":"#REF!","v":{"$error":"#REF!"}},{"$f":"#REF!","v":{"$error":"#REF!"}},{"$f":"#REF!","v":{"$error":"#REF!"}},{"$f":"#REF!","v":{"$error":"#REF!"}},{"$f":"#REF!","v":{"$error":"#REF!"}},{"$f":"IF(#REF!=2,\"Parent Company Guarantee\",IF(#REF!=3,\"Letter of Credit\",IF(#REF!=4,\"Deposit Deed\",IF(#REF!=1,\"Meets Requirements\",\"UNCHECKED\"))))","v":{"$error":"#REF!"}},"No",{"$f":"#REF!","v":{"$error":"#REF!"}},{"$f":"#REF!","v":{"$error":"#REF!"}},"Storage User",{"$f":"#REF!","v":{"$error":"#REF!"}},{"$f":"#REF!","v":{"$error":"#REF!"}},{"$f":"#REF!","v":{"$error":"#REF!"}},{"$f":"#REF!","v":{"$error":"#REF!"}},{"$f":"#REF!","v":{"$error":"#REF!"}},{"$f":"#REF!","v":{"$error":"#REF!"}},{"$f":"#REF!","v":{"$error":"#REF!"}},{"$f":"#REF!","v":{"$error":"#REF!"}},{"$f":"#REF!","v":{"$error":"#REF!"}},{"$f":"#REF!","v":{"$error":"#REF!"}},{"$f":"#REF!","v":{"$error":"#REF!"}},{"$f":"#REF!","v":{"$error":"#REF!"}},{"$f":"#REF!","v":{"$error":"#REF!"}},{"$f":"#REF!","v":{"$error":"#REF!"}},{"$f":"#REF!","v":{"$error":"#REF!"}},{"$f":"#REF!","v":{"$error":"#REF!"}},null,{"$f":"#REF!","v":{"$error":"#REF!"}},{"$f":"#REF!","v":{"$error":"#REF!"}}]
[null,null,null,"..",{"$f":"#REF!","v":{"$error":"#REF!"}},{"$f":"#REF!","v":{"$error":"#REF!"}},{"$f":"#REF!","v":{"$error":"#REF!"}},{"$f":"#REF!","v":{"$error":"#REF!"}},{"$f":"#REF!","v":{"$error":"#REF!"}},{"$f":"#REF!","v":{"$error":"#REF!"}},{"$f":"#REF!","v":{"$error":"#REF!"}},{"$f":"#REF!","v":{"$error":"#REF!"}},{"$f":"#REF!","v":{"$error":"#REF!"}},{"$f":"#REF!","v":{"$error":"#REF!"}},{"$f":"IF(#REF!=2,\"Parent Company Guarantee\",IF(#REF!=3,\"Letter of Credit\",IF(#REF!=4,\"Deposit Deed\",IF(#REF!=1,\"Meets Requirements\",\"UNCHECKED\"))))","v":{"$error":"#REF!"}},"No",{"$f":"#REF!","v":{"$error":"#REF!"}},{"$f":"#REF!","v":{"$error":"#REF!"}},"Storage User",{"$f":"#REF!","v":{"$error":"#REF!"}},{"$f":"#REF!","v":{"$error":"#REF!"}},{"$f":"#REF!","v":{"$error":"#REF!"}},{"$f":"#REF!","v":{"$error":"#REF!"}},{"$f":"#REF!","v":{"$error":"#REF!"}},{"$f":"#REF!","v":{"$error":"#REF!"}},{"$f":"#REF!","v":{"$error":"#REF!"}},{"$f":"#REF!","v":{"$error":"#REF!"}},{"$f":"#REF!","v":{"$error":"#REF!"}},{"$f":"#REF!","v":{"$error":"#REF!"}},{"$f":"#REF!","v":{"$error":"#REF!"}},{"$f":"#REF!","v":{"$error":"#REF!"}},{"$f":"#REF!","v":{"$error":"#REF!"}},{"$f":"#REF!","v":{"$error":"#REF!"}},{"$f":"#REF!","v":{"$error":"#REF!"}},{"$f":"#REF!","v":{"$error":"#REF!"}},null,{"$f":"#REF!","v":{"$error":"#REF!"}},{"$f":"#REF!","v":{"$error":"#REF!"}}]